fUSD/lending_fUSD_20241221
["ID","MTS","AMOUNT","RATE_DAILY","PERIOD"]
[346189496,1734769868296,-1817.88,0.00020021,2]
[346189497,1734769868305,-154.037807,0.00020021,2]
[346189498,1734769868314,-150.0,0.00020049,4]
[346189499,1734769868323,-150.0,0.00020049,4]
[346189500,1734769868332,-769.47,0.00020055,2]
[346189501,1734769868341,-150.0,0.00020056,4]
[346189502,1734769868350,-200.0,0.00020099,2]
[346189503,1734769868359,-2000.0,0.00020099,2]
[346189504,1734769868368,-200.0,0.00020099,2]
[346189505,1734769868377,-1006.76,0.00020121,2]
[346189506,1734769868386,-1107.72,0.00020121,2]
[346189507,1734769868395,-500.0,0.00020121,2]
[346189508,1734769868404,-500.0,0.00020121,2]
[346189509,1734769868414,-500.0,0.00020121,2]
[346189510,1734769868422,-500.0,0.00020121,2]
[346189511,1734769868431,-963.91,0.00020121,2]
[346189512,1734769868440,-500.0,0.00020121,2]
[346189513,1734769868450,-500.0,0.00020121,2]
[346189514,1734769868459,-899.8,0.00020121,2]
[346189515,1734769868467,-550.76,0.00020121,2]
[346189516,1734769868476,-786.66,0.00020121,2]
[346189517,1734769868485,-581.7,0.00020121,2]
[346189518,1734769868494,-531.56,0.00020121,2]
[346189519,1734769868503,-500.0,0.00020121,2]
[346189520,1734769868515,-500.0,0.00020121,2]
[346189521,1734769868524,-500.0,0.00020121,2]
[346189522,1734769868534,-500.0,0.00020121,2]
[346189523,1734769868543,-500.0,0.00020121,2]
[346189524,1734769868553,-817.02,0.00020121,2]
[346189525,1734769868562,-500.0,0.00020121,2]
[346189526,1734769868571,-500.0,0.00020121,2]
[346189527,1734769868580,-500.0,0.00020121,2]
[346189528,1734769868589,-986.87,0.00020121,2]
[346189529,1734769868598,-500.0,0.00020121,2]
[346189530,1734769868608,-908.9,0.00020121,2]
[346189531,1734769868618,-1018.49,0.00020121,2]
[346189532,1734769868628,-1079.48,0.00020121,2]
[346189533,1734769868638,-500.0,0.00020121,2]
[346189534,1734769868648,-500.0,0.00020121,2]
[346189535,1734769868658,-1322.87,0.00020121,2]
[346189536,1734769868668,-500.0,0.00020121,2]
[346189537,1734769868678,-391.87952125,0.00020121,2]
[346189538,1734769868688,-500.0,0.00020121,2]
[346189539,1734769868699,-500.0,0.00020121,2]
[346189540,1734769868709,-1111.98,0.00020121,2]
[346189541,1734769868718,-1463.24,0.00020121,2]
[346189542,1734769868729,-500.0,0.00020121,2]
[346189543,1734769868738,-1272.79,0.00020121,2]
[346189544,1734769868748,-653.5,0.00020121,2]
[346189545,1734769868760,-1142.97,0.00020121,2]
[346189546,1734769868770,-500.0,0.00020121,2]
[346189547,1734769868780,-1214.5,0.00020121,2]
[346189548,1734769868790,-693.93,0.00020121,2]
[346189549,1734769868799,-500.0,0.00020121,2]
[346189550,1734769868809,-500.0,0.00020121,2]
[346189551,1734769868818,-500.0,0.00020121,2]
[346189552,1734769868828,-500.0,0.00020121,2]
[346189553,1734769868837,-535.74,0.00020121,2]
[346189554,1734769868847,-866.47,0.00020121,2]
[346189555,1734769868858,-500.0,0.00020121,2]
[346189556,1734769868868,-1062.63,0.00020121,2]
[346189557,1734769868877,-500.0,0.00020121,2]
[346189558,1734769868888,-500.0,0.00020121,2]
[346189559,1734769868897,-500.0,0.00020121,2]
[346189560,1734769868907,-500.0,0.00020121,2]
[346189561,1734769868917,-771.8,0.00020121,2]
[346189562,1734769868927,-500.0,0.00020121,2]
[346189563,1734769868936,-500.0,0.00020121,2]
[346189564,1734769868946,-500.0,0.00020121,2]
[346189565,1734769868955,-500.0,0.00020121,2]
[346189566,1734769868965,-594.86,0.00020121,2]
[346189567,1734769868974,-1067.07,0.00020121,2]
[346189568,1734769868984,-500.0,0.00020121,2]
[346189569,1734769868993,-521.59,0.00020121,2]
[346189570,1734769869002,-500.0,0.00020121,2]
[346189571,1734769869015,-1968.56,0.00020121,2]
[346189572,1734769869025,-897.44,0.00020121,2]
[346189573,1734769869036,-1678.37,0.00020121,2]
[346189574,1734769869049,-743.27,0.00020121,2]
[346189575,1734769869061,-1183.83,0.00020121,2]
[346189576,1734769869071,-1115.72,0.00020121,2]
[346189577,1734769869083,-637.53,0.00020121,2]
[346189578,1734769869092,-500.0,0.00020121,2]
[346189579,1734769869102,-694.28,0.00020121,2]
[346189580,1734769869111,-1132.35,0.00020121,2]
[346189581,1734769869121,-720.98,0.00020121,2]
[346189582,1734769869132,-754.31,0.00020121,2]
[346189583,1734769869142,-1056.77,0.00020121,2]
[346189584,1734769869152,-1699.2,0.00020121,2]
[346189585,1734769869162,-958.54,0.00020121,2]
[346189586,1734769869171,-725.66,0.00020121,2]
[346189587,1734769869181,-1303.37,0.00020121,2]
[346189588,1734769869191,-1519.2,0.00020121,2]
[346189589,1734769869201,-1616.36,0.00020121,2]
[346189590,1734769869211,-1428.2,0.00020121,2]
[346189591,1734769869221,-601.26,0.00020121,2]
[346189592,1734769869230,-854.19,0.00020121,2]
[346189593,1734769869240,-500.0,0.00020121,2]
[346189594,1734769869250,-500.0,0.00020121,2]
[346189595,1734769869263,-504.72684227,0.00020121,2]
[346189596,1734769869277,-500.0,0.00020121,2]
[346189597,1734769869287,-514.03,0.00020121,2]
[346189598,1734769869297,-1403.09,0.00020121,2]
[346189599,1734769869306,-1542.93,0.00020121,2]
[346189600,1734769869316,-1934.91,0.00020121,2]
[346189601,1734769869326,-709.92,0.00020121,2]
[346189602,1734769869335,-742.36,0.00020121,2]
[346189603,1734769869345,-500.0,0.00020121,2]
[346189604,1734769869354,-2451.17,0.00020121,2]
[346189605,1734769869363,-500.0,0.00020121,2]
[346189606,1734769869373,-500.0,0.00020121,2]
[346189607,1734769869383,-458.03794383,0.00020121,2]
[346189608,1734769869393,-500.0,0.00020121,2]
[346189609,1734769869403,-825.21,0.00020121,2]
[346189610,1734769869412,-1111.89,0.00020121,2]
[346189611,1734769869422,-500.0,0.00020121,2]
[346189612,1734769869431,-1379.34,0.00020121,2]
[346189613,1734769869441,-500.0,0.00020121,2]
[346189614,1734769869450,-500.0,0.00020121,2]
[346189615,1734769869460,-4072.68,0.00020121,2]
[346189616,1734769869469,-1131.46,0.00020121,2]
[346189617,1734769869479,-4144.12,0.00020121,2]
[346189618,1734769869488,-851.9399638,0.00020131,2]
[346189619,1734769869498,-2000.0,0.00020132,2]
[346189620,1734769869510,-152.70496243,0.00020134,2]
[346189621,1734769869519,-500.0,0.00020136,2]
[346189622,1734769869529,-235.864776,0.00020136,2]
[346189623,1734769869538,-697.163733,0.00020136,2]
[346189624,1734769869548,-151.0,0.00020136,2]
[346189625,1734769869558,-150.0,0.00020137,4]
[346189626,1734769869568,-501.02786621,0.0002015,2]
[346189627,1734769869577,-2359.453679,0.00020164,2]
[346189628,1734769869586,-151.0,0.00020164,2]
[346189629,1734769869596,-151.0,0.00020164,2]
[346189630,1734769869606,-151.0,0.00020164,2]
[346189631,1734769869615,-151.0,0.00020164,2]
[346189632,1734769869625,-436.91,0.00020164,2]
[346189633,1734769869635,-770.39,0.00020164,2]
[346189634,1734769869644,-645.61,0.00020164,2]
[346189635,1734769869653,-3503.71,0.00020165,2]
[346189636,1734769869663,-1024.59,0.00020165,2]
[346189637,1734769869672,-3237.21,0.00020165,2]
[346189638,1734769869682,-500.0,0.00020165,2]
[346189639,1734769869691,-1586.97,0.00020165,2]
[346189640,1734769869701,-500.0,0.00020166,2]
[346189641,1734769869710,-500.0,0.00020166,2]
[346189642,1734769869720,-500.0,0.00020166,2]
[346189643,1734769869729,-500.0,0.00020166,2]
[346189644,1734769869739,-500.0,0.00020166,2]
[346189645,1734769869749,-500.0,0.00020166,2]
[346189646,1734769869760,-500.0,0.00020166,2]
[346189647,1734769869770,-500.0,0.00020166,2]
[346189648,1734769869779,-500.0,0.00020166,2]
[346189649,1734769869789,-500.0,0.00020166,2]
[346189650,1734769869798,-500.0,0.00020166,2]
[346189651,1734769869808,-500.0,0.00020166,2]
[346189652,1734769869818,-500.0,0.00020166,2]
[346189653,1734769869827,-500.0,0.00020166,2]
[346189654,1734769869837,-500.0,0.00020166,2]
[346189655,1734769869847,-500.0,0.00020166,2]
[346189656,1734769869857,-500.0,0.00020166,2]
[346189657,1734769869867,-476.8145069,0.00020166,2]
[346189658,1734769869876,-500.0,0.00020166,2]
[346189659,1734769869886,-500.0,0.00020166,2]
[346189660,1734769869895,-555.27,0.00020166,2]
[346189661,1734769869905,-500.0,0.00020166,2]
[346189662,1734769869914,-500.0,0.00020166,2]
[346189663,1734769869924,-500.0,0.00020166,2]
[346189664,1734769869933,-500.0,0.00020166,2]
[346189665,1734769869943,-500.0,0.00020166,2]
[346189666,1734769869953,-500.0,0.00020166,2]
[346189667,1734769869962,-500.0,0.00020166,2]
[346189668,1734769869972,-500.0,0.00020166,2]
[346189669,1734769869981,-500.0,0.00020166,2]
[346189670,1734769869990,-500.0,0.00020166,2]
[346189671,1734769870000,-500.0,0.00020166,2]
[346189672,1734769870011,-474.7505289,0.00020166,2]
[346189673,1734769870020,-614.79,0.00020166,2]
[346189674,1734769870029,-500.0,0.00020166,2]
[346189675,1734769870040,-500.0,0.00020166,2]
[346189676,1734769870052,-500.0,0.00020166,2]
[346189677,1734769870061,-500.0,0.00020166,2]
[346189678,1734769870071,-500.0,0.00020166,2]
[346189679,1734769870080,-500.0,0.00020166,2]
[346189680,1734769870090,-615.53,0.00020166,2]
[346189681,1734769870099,-500.0,0.00020166,2]
[346189682,1734769870109,-500.0,0.00020166,2]
[346189683,1734769870118,-500.0,0.00020166,2]
[346189684,1734769870128,-500.0,0.00020166,2]
[346189685,1734769870137,-500.0,0.00020166,2]
[346189686,1734769870146,-500.0,0.00020166,2]
[346189687,1734769870156,-500.0,0.00020166,2]
[346189688,1734769870165,-500.0,0.00020166,2]
[346189689,1734769870175,-500.0,0.00020166,2]
[346189690,1734769870380,-500.0,0.00020166,2]
[346189691,1734769870390,-500.0,0.00020166,2]
[346189692,1734769870399,-500.0,0.00020166,2]
[346189693,1734769870409,-500.0,0.00020166,2]
[346189694,1734769870418,-500.0,0.00020166,2]
[346189695,1734769870427,-500.0,0.00020166,2]
[346189696,1734769870436,-500.0,0.00020166,2]
[346189697,1734769870446,-167.4,0.00020166,2]
[346189698,1734769870455,-596.19,0.00020166,2]
[346189699,1734769870464,-500.0,0.00020166,2]
[346189700,1734769870474,-500.0,0.00020166,2]
[346189701,1734769870483,-500.0,0.00020166,2]
[346189702,1734769870492,-500.0,0.00020166,2]
[346189703,1734769870501,-500.0,0.00020166,2]
[346189704,1734769870511,-478.32335753,0.00020166,2]
[346189705,1734769870521,-500.0,0.00020166,2]
[346189706,1734769870530,-500.0,0.00020166,2]
[346189707,1734769870539,-500.0,0.00020166,2]
[346189708,1734769870548,-500.0,0.00020166,2]
[346189709,1734769870557,-500.0,0.00020166,2]
[346189710,1734769870567,-500.0,0.00020166,2]
[346189711,1734769870576,-500.0,0.00020166,2]
[346189712,1734769870585,-500.0,0.00020166,2]
[346189713,1734769870595,-500.0,0.00020166,2]
[346189714,1734769870604,-399.02386952,0.00020166,2]
[346189715,1734769870614,-500.0,0.00020166,2]
[346189716,1734769870624,-500.0,0.00020166,2]
[346189717,1734769870634,-500.0,0.00020166,2]
[346189718,1734769870643,-500.0,0.00020166,2]
[346189719,1734769870652,-500.0,0.00020166,2]
[346189720,1734769870662,-500.0,0.00020166,2]
[346189721,1734769870671,-500.0,0.00020166,2]
[346189722,1734769870681,-500.0,0.00020166,2]
[346189723,1734769870691,-500.0,0.00020166,2]
[346189724,1734769870701,-500.0,0.00020166,2]
[346189725,1734769870711,-512.1,0.00020166,2]
[346189726,1734769870720,-560.41,0.00020166,2]
[346189727,1734769870730,-500.0,0.00020166,2]
[346189728,1734769870740,-500.0,0.00020166,2]
[346189729,1734769870749,-500.0,0.00020166,2]
[346189730,1734769870761,-500.0,0.00020166,2]
[346189731,1734769870771,-500.0,0.00020166,2]
[346189732,1734769870780,-500.0,0.00020166,2]
[346189733,1734769870789,-500.0,0.00020166,2]
[346189734,1734769870799,-583.9,0.00020166,2]
[346189735,1734769870808,-500.0,0.00020166,2]
[346189736,1734769870818,-500.0,0.00020166,2]
[346189737,1734769870827,-500.0,0.00020166,2]
[346189738,1734769870836,-500.0,0.00020166,2]
[346189739,1734769870846,-500.0,0.00020166,2]
[346189740,1734769870856,-500.0,0.00020166,2]
[346189741,1734769870866,-500.0,0.00020166,2]
[346189742,1734769870875,-392.33655805,0.00020166,2]
[346189743,1734769870885,-509.08823732,0.00020166,2]
[346189744,1734769870894,-500.0,0.00020166,2]
[346189745,1734769870904,-500.0,0.00020166,2]
[346189746,1734769870914,-500.0,0.00020166,2]
[346189747,1734769870923,-500.0,0.00020166,2]
[346189748,1734769870932,-500.0,0.00020166,2]
[346189749,1734769870942,-500.0,0.00020166,2]
[346189750,1734769870951,-500.0,0.00020166,2]
[346189751,1734769870960,-500.0,0.00020166,2]
[346189752,1734769870970,-500.0,0.00020166,2]
[346189753,1734769870979,-500.0,0.00020166,2]
[346189754,1734769870988,-500.0,0.00020166,2]
[346189755,1734769870997,-997.17,0.00020166,2]
[346189756,1734769871007,-500.0,0.00020166,2]
[346189757,1734769871021,-500.0,0.00020166,2]
[346189758,1734769871030,-500.0,0.00020166,2]
[346189759,1734769871040,-500.0,0.00020166,2]
[346189760,1734769871054,-500.0,0.00020166,2]
[346189761,1734769871063,-685.72,0.00020166,2]
[346189762,1734769871073,-500.0,0.00020166,2]
[346189763,1734769871083,-500.0,0.00020166,2]
[346189764,1734769871093,-500.0,0.00020166,2]
[346189765,1734769871103,-500.0,0.00020166,2]
[346189766,1734769871113,-500.0,0.00020166,2]
[346189767,1734769871123,-500.0,0.00020166,2]
[346189768,1734769871133,-706.79,0.00020166,2]
[346189769,1734769871142,-500.0,0.00020166,2]
[346189770,1734769871152,-538.7413884,0.00020166,2]
[346189771,1734769871161,-1349.74,0.00020166,2]
[346189772,1734769871171,-1612.89,0.00020166,2]
[346189773,1734769871180,-500.0,0.00020166,2]
[346189774,1734769871190,-500.0,0.00020166,2]
[346189775,1734769871199,-2066.3,0.00020166,2]
[346189776,1734769871209,-500.0,0.00020166,2]
[346189777,1734769871219,-500.0,0.00020166,2]
[346189778,1734769871228,-504.51689596,0.00020166,2]
[346189779,1734769871238,-314.72,0.00020166,2]
[346189780,1734769871247,-500.0,0.00020166,2]
[346189781,1734769871257,-500.0,0.00020166,2]
[346189782,1734769871271,-615.9,0.00020166,2]
[346189783,1734769871281,-1184.33,0.00020166,2]
[346189784,1734769871290,-500.0,0.00020166,2]
[346189785,1734769871299,-500.0,0.00020166,2]
[346189786,1734769871308,-2103.98,0.00020166,2]
[346189787,1734769871318,-1834.81,0.00020166,2]
[346189788,1734769871327,-500.0,0.00020166,2]
[346189789,1734769871337,-510.18086894,0.00020166,2]
[346189790,1734769871346,-4676.27,0.00020166,2]
[346189791,1734769871355,-500.0,0.00020166,2]
[346189792,1734769871364,-500.0,0.00020166,2]
[346189793,1734769871373,-513.50130087,0.00020166,2]
[346189794,1734769871383,-500.0,0.00020166,2]
[346189795,1734769871391,-3208.63,0.00020166,2]
[346189796,1734769871401,-391.78192873,0.00020166,2]
[346189797,1734769871410,-500.0,0.00020166,2]
[346189798,1734769871419,-500.0,0.00020166,2]
[346189799,1734769871428,-500.0,0.00020166,2]
[346189800,1734769871437,-500.0,0.00020166,2]
[346189801,1734769871446,-2622.64,0.00020166,2]
[346189802,1734769871455,-729.95,0.00020166,2]
[346189803,1734769871464,-500.0,0.00020166,2]
[346189804,1734769871473,-500.0,0.00020166,2]
[346189805,1734769871483,-1522.05,0.00020166,2]
[346189806,1734769871492,-500.0,0.00020166,2]
[346189807,1734769871502,-500.0,0.00020166,2]
[346189808,1734769871514,-500.0,0.00020166,2]
[346189809,1734769871523,-5000.0,0.00020166,10]
[346189810,1734769871532,-872.79,0.00020166,2]
[346189811,1734769871542,-500.0,0.00020166,2]
[346189812,1734769871551,-500.0,0.00020166,2]
[346189813,1734769871561,-554.69,0.00020166,2]
[346189814,1734769871570,-500.0,0.00020166,2]
[346189815,1734769871580,-500.0,0.00020166,2]
[346189816,1734769871589,-1740.06,0.00020166,2]
[346189817,1734769871599,-8313.36,0.00020166,2]
[346189818,1734769871608,-500.0,0.00020166,2]
[346189819,1734769871618,-807.11,0.00020167,2]
[346189820,1734769871628,-1622.3,0.00020167,2]
[346189821,1734769871637,-2408.36,0.00020167,2]
[346189822,1734769871646,-1853.05,0.00020167,2]
[346189823,1734769871655,-599.34,0.00020167,2]
[346189824,1734769871664,-1437.49,0.00020167,2]
[346189825,1734769871674,-2962.33,0.00020167,2]
[346189826,1734769871684,-1377.35,0.00020167,2]
[346189827,1734769871693,-4029.78,0.00020167,2]
[346189828,1734769871703,-1342.55,0.00020167,2]
[346189829,1734769871713,-151.0,0.00020167,2]
[346189830,1734769871723,-297.223263,0.00020167,2]
[346189831,1734769871733,-297.223263,0.00020167,2]
[346189832,1734769871743,-1966.0,0.000202,2]
[346189833,1734769871753,-150.0,0.00020218,4]
[346189834,1734769871764,-200.0,0.0002022,2]
[346189835,1734769871774,-2000.0,0.0002022,2]
[346189836,1734769871783,-200.0,0.0002022,2]
[346189837,1734769871793,-150.0,0.00020248,4]
[346189838,1734769871802,-150.0,0.00020248,4]
[346189839,1734769871812,-1079.48,0.00020258,2]
[346189840,1734769871822,-244.925794,0.00020266,2]
[346189841,1734769871831,-151.0,0.00020266,2]
[346189842,1734769871840,-151.0,0.00020266,2]
[346189843,1734769871850,-151.0,0.00020266,2]
[346189844,1734769871860,-151.539413,0.00020266,2]
[346189845,1734769871870,-500.0,0.00020266,2]
[346189846,1734769871879,-896.14,0.00020266,2]
[346189847,1734769871889,-560.27,0.00020266,2]
[346189848,1734769871899,-518.18,0.00020266,2]
[346189849,1734769871908,-500.0,0.00020266,2]
[346189850,1734769871918,-748.73,0.00020266,2]
[346189851,1734769871927,-771.79,0.00020266,2]
[346189852,1734769871937,-500.0,0.00020266,2]
[346189853,1734769871946,-1095.4,0.00020266,2]
[346189854,1734769871956,-500.0,0.00020266,2]
[346189855,1734769871966,-1543.7,0.00020266,2]
[346189856,1734769871975,-684.8,0.00020266,2]
[346189857,1734769871984,-836.87,0.00020266,2]
[346189858,1734769871993,-500.0,0.00020266,2]
[346189859,1734769872003,-500.0,0.00020266,2]
[346189860,1734769872014,-934.15,0.00020266,2]
[346189861,1734769872023,-500.0,0.00020266,2]
[346189862,1734769872033,-719.72,0.00020266,2]
[346189863,1734769872044,-506.19,0.00020266,2]
[346189864,1734769872059,-521.06,0.00020266,2]
[346189865,1734769872068,-832.43,0.00020266,2]
[346189866,1734769872078,-671.61,0.00020266,2]
[346189867,1734769872087,-653.84,0.00020266,2]
[346189868,1734769872097,-880.14,0.00020266,2]
[346189869,1734769872107,-692.41,0.00020266,2]
[346189870,1734769872117,-1000.59,0.00020266,2]
[346189871,1734769872128,-1101.22,0.00020266,2]
[346189872,1734769872138,-657.85,0.00020266,2]
[346189873,1734769872147,-500.0,0.00020266,2]
[346189874,1734769872158,-225.71981536,0.00020266,2]
[346189875,1734769872168,-774.6,0.00020266,2]
[346189876,1734769872177,-500.0,0.00020266,2]
[346189877,1734769872187,-500.0,0.00020266,2]
[346189878,1734769872196,-954.05,0.00020266,2]
[346189879,1734769872205,-1138.7,0.00020266,2]
[346189880,1734769872215,-500.0,0.00020266,2]
[346189881,1734769872227,-929.19,0.00020266,2]
[346189882,1734769872236,-754.06,0.00020266,2]
[346189883,1734769872246,-500.0,0.00020266,2]
[346189884,1734769872255,-673.28,0.00020266,2]
[346189885,1734769872267,-581.25,0.00020266,2]
[346189886,1734769872278,-675.51,0.00020266,2]
[346189887,1734769872287,-1127.19,0.00020266,2]
[346189888,1734769872297,-500.0,0.00020266,2]
[346189889,1734769872306,-1260.74,0.00020266,2]
[346189890,1734769872316,-503.55,0.00020266,2]
[346189891,1734769872326,-1143.47,0.00020266,2]
[346189892,1734769872336,-829.64,0.00020266,2]
[346189893,1734769872345,-500.0,0.00020266,2]
[346189894,1734769872355,-500.0,0.00020266,2]
[346189895,1734769872364,-500.0,0.00020266,2]
[346189896,1734769872374,-500.0,0.00020266,2]
[346189897,1734769872383,-500.0,0.00020266,2]
[346189898,1734769872392,-766.03,0.00020266,2]
[346189899,1734769872402,-551.84,0.00020266,2]
[346189900,1734769872411,-500.0,0.00020266,2]
[346189901,1734769872420,-508.5,0.00020266,2]
[346189902,1734769872430,-749.47,0.00020266,2]
[346189903,1734769872440,-500.0,0.00020266,2]
[346189904,1734769872449,-1147.83,0.00020266,2]
[346189905,1734769872459,-959.63,0.00020266,2]
[346189906,1734769872469,-895.71,0.00020266,2]
[346189907,1734769872478,-869.86,0.00020266,2]
[346189908,1734769872487,-1036.93,0.00020266,2]
[346189909,1734769872496,-1138.3,0.00020266,2]
[346189910,1734769872505,-500.0,0.00020266,2]
[346189911,1734769872518,-500.0,0.00020266,2]
[346189912,1734769872527,-500.0,0.00020266,2]
[346189913,1734769872536,-1010.11,0.00020266,2]
[346189914,1734769872545,-717.94,0.00020266,2]
[346189915,1734769872555,-866.44,0.00020266,2]
[346189916,1734769872564,-160.60765377,0.00020268,2]
[346189917,1734769872574,-500.0,0.00020268,2]
[346189918,1734769872583,-500.0,0.00020268,2]
[346189919,1734769872593,-500.0,0.00020268,2]
[346189920,1734769872602,-500.0,0.00020268,2]
[346189921,1734769872611,-500.0,0.00020268,2]
[346189922,1734769872620,-500.0,0.00020268,2]
[346189923,1734769872630,-500.0,0.00020268,2]
[346189924,1734769872640,-500.0,0.00020268,2]
[346189925,1734769872650,-500.0,0.00020268,2]
[346189926,1734769872660,-520.73,0.00020268,2]
[346189927,1734769872669,-500.0,0.00020268,2]
[346189928,1734769872679,-500.0,0.00020268,2]
[346189929,1734769872688,-646.35300357,0.00020268,2]
[346189930,1734769872698,-500.0,0.00020268,2]
[346189931,1734769872708,-500.0,0.00020268,2]
[346189932,1734769872717,-500.0,0.00020268,2]
[346189933,1734769872726,-500.0,0.00020268,2]
[346189934,1734769872736,-500.0,0.00020268,2]
[346189935,1734769872746,-500.0,0.00020268,2]
[346189936,1734769872755,-649.75326632,0.00020268,2]
[346189937,1734769872767,-500.0,0.00020268,2]
[346189938,1734769872776,-346.90410519,0.00020268,2]
[346189939,1734769872786,-500.0,0.00020268,2]
[346189940,1734769872795,-500.0,0.00020268,2]
[346189941,1734769872805,-500.0,0.00020268,2]
[346189942,1734769872814,-556.41302889,0.00020268,2]
[346189943,1734769872824,-815.52,0.00020268,2]
[346189944,1734769872833,-500.0,0.00020268,2]
[346189945,1734769872843,-500.0,0.00020268,2]
[346189946,1734769872853,-500.0,0.00020268,2]
[346189947,1734769872862,-500.0,0.00020268,2]
[346189948,1734769872871,-500.0,0.00020268,2]
[346189949,1734769872880,-511.97748935,0.00020268,2]
[346189950,1734769872889,-500.0,0.00020268,2]
[346189951,1734769872898,-500.0,0.00020268,2]
[346189952,1734769872907,-500.0,0.00020268,2]
[346189953,1734769872917,-690.78,0.00020268,2]
[346189954,1734769872927,-500.0,0.00020268,2]
[346189955,1734769872936,-500.0,0.00020268,2]
[346189956,1734769872945,-500.0,0.00020268,2]
[346189957,1734769872954,-500.0,0.00020268,2]
[346189958,1734769872964,-521.75997186,0.00020268,2]
[346189959,1734769872973,-500.0,0.00020268,2]
[346189960,1734769872983,-500.0,0.00020268,2]
[346189961,1734769872992,-500.0,0.00020268,2]
[346189962,1734769873001,-500.0,0.00020268,2]
[346189963,1734769873011,-500.0,0.00020268,2]
[346189964,1734769873023,-500.0,0.00020268,2]
[346189965,1734769873033,-500.0,0.00020268,2]
[346189966,1734769873042,-459.26,0.00020268,2]
[346189967,1734769873057,-500.0,0.00020268,2]
[346189968,1734769873066,-500.0,0.00020268,2]
[346189969,1734769873076,-445.3608213,0.00020268,2]
[346189970,1734769873086,-718.77,0.00020268,2]
[346189971,1734769873096,-500.0,0.00020268,2]
[346189972,1734769873105,-500.0,0.00020268,2]
[346189973,1734769873114,-632.48,0.00020268,2]
[346189974,1734769873126,-500.0,0.00020268,2]
[346189975,1734769873135,-500.0,0.00020268,2]
[346189976,1734769873144,-743.32,0.00020268,2]
[346189977,1734769873154,-151.0,0.00020268,2]
[346189978,1734769873163,-549.62,0.00020268,2]
[346189979,1734769873173,-151.0,0.00020268,2]
[346189980,1734769873182,-500.0,0.00020268,2]
[346189981,1734769873191,-154.042376,0.00020268,2]
[346189982,1734769873201,-151.0,0.00020268,2]
[346189983,1734769873210,-787.15,0.00020268,2]
[346189984,1734769873220,-1315.85,0.00020268,2]
[346189985,1734769873229,-151.0,0.00020268,2]
[346189986,1734769873238,-151.0,0.00020268,2]
[346189987,1734769873247,-500.0,0.00020268,2]
[346189988,1734769873256,-500.0,0.00020268,2]
[346189989,1734769873267,-500.0,0.00020268,2]
[346189990,1734769873277,-500.0,0.00020268,2]
[346189991,1734769873286,-500.0,0.00020268,2]
[346189992,1734769873295,-500.0,0.00020268,2]
[346189993,1734769873304,-704.01,0.00020268,2]
[346189994,1734769873313,-500.0,0.00020268,2]
[346189995,1734769873322,-151.0,0.00020268,2]